[Event "Late-Titled-Tuesday-Blitz-February-27-2024"]
[Site "Chess.com"]
[Date "2024.02.27"]
[Round "8"]
[White "ChadBiryani"]
[Black "rhungaski"]
[Result "0-1"]
[WhiteElo "2413"]
[BlackElo "2587"]
[TimeControl "180+1"]
[EndTime "15:27:12 PST"]
[Termination "rhungaski won on time"]

1. Nf3 {[%clk 0:03:00.9]} 1... Nf6 {[%clk 0:02:57.7]} 2. g3 {[%clk 0:03:00.8]}
2... g6 {[%clk 0:02:57.9]} 3. Bg2 {[%clk 0:03:01.3]} 3... Bg7 {[%clk 0:02:58.7]}
4. O-O {[%clk 0:03:01.8]} 4... O-O {[%clk 0:02:59.4]} 5. c4 {[%clk 0:03:02.1]}
5... d6 {[%clk 0:02:59.2]} 6. Nc3 {[%clk 0:03:02.1]} 6... e5 {[%clk 0:02:58.8]}
7. b3 {[%clk 0:02:57.9]} 7... Re8 {[%clk 0:02:54]} 8. Bb2 {[%clk 0:02:57.6]}
8... e4 {[%clk 0:02:45.4]} 9. Ne1 {[%clk 0:02:39.1]} 9... h5 {[%clk 0:02:28.8]}
10. Nc2 {[%clk 0:02:32.4]} 10... h4 {[%clk 0:02:06.6]} 11. Ne3 {[%clk 0:02:26]}
11... c6 {[%clk 0:02:00.7]} 12. d3 {[%clk 0:02:23]} 12... d5 {[%clk 0:01:52.1]}
13. cxd5 {[%clk 0:01:53.8]} 13... cxd5 {[%clk 0:01:53]} 14. Nb5 {[%clk
0:01:48.5]} 14... a6 {[%clk 0:01:49.2]} 15. Nd4 {[%clk 0:01:48.1]} 15... Nbd7
{[%clk 0:01:32.6]} 16. dxe4 {[%clk 0:01:39.7]} 16... dxe4 {[%clk 0:01:33.5]} 17.
Rc1 {[%clk 0:01:23.8]} 17... hxg3 {[%clk 0:01:13.1]} 18. hxg3 {[%clk 0:01:19.4]}
18... Bh6 {[%clk 0:01:04]} 19. Nc4 {[%clk 0:00:56.2]} 19... Nf8 {[%clk 0:00:49]}
20. e3 {[%clk 0:00:51.8]} 20... Bg4 {[%clk 0:00:41.1]} 21. Qc2 {[%clk
0:00:51.2]} 21... N8h7 {[%clk 0:00:40.7]} 22. Ba3 {[%clk 0:00:37.5]} 22... Rc8
{[%clk 0:00:37.4]} 23. Qb2 {[%clk 0:00:36.3]} 23... Bf8 {[%clk 0:00:26.1]} 24.
Bxf8 {[%clk 0:00:22.6]} 24... Rxf8 {[%clk 0:00:27]} 25. Rc2 {[%clk 0:00:21.4]}
25... Ng5 {[%clk 0:00:25.6]} 26. Rd2 {[%clk 0:00:19.9]} 26... Qe7 {[%clk
0:00:25.2]} 27. Ne2 {[%clk 0:00:16.4]} 27... Nf3+ {[%clk 0:00:23.6]} 28. Bxf3
{[%clk 0:00:16.1]} 28... Bxf3 {[%clk 0:00:23.9]} 29. Nf4 {[%clk 0:00:16.2]}
29... Rc5 {[%clk 0:00:22.2]} 30. Rd6 {[%clk 0:00:10.6]} 30... Rf5 {[%clk
0:00:20.6]} 31. Qd4 {[%clk 0:00:06.7]} 31... b5 {[%clk 0:00:20.5]} 32. Nd2
{[%clk 0:00:06.4]} 32... Kg7 {[%clk 0:00:19.7]} 33. Nxf3 {[%clk 0:00:06]} 33...
exf3 {[%clk 0:00:19.6]} 34. g4 {[%clk 0:00:05.7]} 34... Rg5 {[%clk 0:00:17.6]}
35. Nh3 {[%clk 0:00:06.3]} 35... Rxg4+ {[%clk 0:00:17.9]} 36. Qxg4 {[%clk
0:00:04.1]} 36... Nxg4 {[%clk 0:00:18.8]} 37. Rfd1 {[%clk 0:00:04.2]} 37... Qh4
{[%clk 0:00:18.7]} 0-1

[Event "Late-Titled-Tuesday-Blitz-February-27-2024"]
[Site "Chess.com"]
[Date "2024.02.27"]
[Round "8"]
[White "Genghis_K"]
[Black "Njal28"]
[Result "0-1"]
[WhiteElo "2941"]
[BlackElo "3044"]
[TimeControl "180+1"]
[EndTime "15:27:16 PST"]
[Termination "Njal28 won by resignation"]

1. e4 {[%clk 0:03:00.9]} 1... e5 {[%clk 0:02:59.4]} 2. Nf3 {[%clk 0:03:01.6]}
2... Nc6 {[%clk 0:02:59.9]} 3. d4 {[%clk 0:03:02.3]} 3... exd4 {[%clk
0:02:59.6]} 4. Nxd4 {[%clk 0:03:03.2]} 4... Nf6 {[%clk 0:02:59.3]} 5. Nxc6
{[%clk 0:03:03.9]} 5... bxc6 {[%clk 0:03:00]} 6. Bd3 {[%clk 0:03:04.6]} 6... d6
{[%clk 0:02:58.9]} 7. O-O {[%clk 0:03:00.6]} 7... g6 {[%clk 0:02:56.9]} 8. e5
{[%clk 0:02:54.1]} 8... dxe5 {[%clk 0:02:55.7]} 9. Qf3 {[%clk 0:02:48.4]} 9...
Bg7 {[%clk 0:02:52.1]} 10. Qxc6+ {[%clk 0:02:43.6]} 10... Bd7 {[%clk 0:02:52.2]}
11. Qc5 {[%clk 0:02:43.5]} 11... Qe7 {[%clk 0:02:04.9]} 12. Be3 {[%clk
0:02:29.4]} 12... Qxc5 {[%clk 0:01:41.3]} 13. Bxc5 {[%clk 0:02:30.3]} 13... Bf8
{[%clk 0:01:40.2]} 14. Bxf8 {[%clk 0:02:23.9]} 14... Kxf8 {[%clk 0:01:40.2]} 15.
Re1 {[%clk 0:02:23.6]} 15... Re8 {[%clk 0:01:33]} 16. Nc3 {[%clk 0:02:21.2]}
16... Kg7 {[%clk 0:01:32.6]} 17. Rad1 {[%clk 0:02:20.8]} 17... Re7 {[%clk
0:01:29.5]} 18. f3 {[%clk 0:02:17.8]} 18... h5 {[%clk 0:01:29.4]} 19. Ne4 {[%clk
0:02:17.3]} 19... Nxe4 {[%clk 0:01:23.8]} 20. Bxe4 {[%clk 0:02:17.8]} 20... f5
{[%clk 0:01:18.3]} 21. Bd5 {[%clk 0:02:18]} 21... h4 {[%clk 0:01:14.7]} 22. Kf2
{[%clk 0:02:17.7]} 22... Kf6 {[%clk 0:01:14.6]} 23. b4 {[%clk 0:02:16.7]} 23...
h3 {[%clk 0:01:06.5]} 24. g3 {[%clk 0:02:16.5]} 24... Rb8 {[%clk 0:01:04.7]} 25.
a3 {[%clk 0:02:16.2]} 25... Be6 {[%clk 0:00:57.2]} 26. c3 {[%clk 0:02:15.1]}
26... Rd7 {[%clk 0:00:38.5]} 27. Bxe6 {[%clk 0:02:00]} 27... Rxd1 {[%clk
0:00:38.5]} 28. Rxd1 {[%clk 0:02:00.1]} 28... Kxe6 {[%clk 0:00:39]} 29. f4
{[%clk 0:01:56.4]} 29... e4 {[%clk 0:00:33.2]} 30. Ke3 {[%clk 0:01:54.6]} 30...
Rb6 {[%clk 0:00:26.8]} 31. c4 {[%clk 0:01:28.1]} 31... Ra6 {[%clk 0:00:26.2]}
32. Ra1 {[%clk 0:01:21.1]} 32... Rd6 {[%clk 0:00:26.3]} 33. Ra2 {[%clk
0:00:47.6]} 33... Rd3+ {[%clk 0:00:26.2]} 34. Ke2 {[%clk 0:00:48.2]} 34... Rc3
{[%clk 0:00:19.8]} 35. c5 {[%clk 0:00:48.6]} 35... Kd5 {[%clk 0:00:18.8]} 36.
Kd2 {[%clk 0:00:42.7]} 36... Rd3+ {[%clk 0:00:18]} 37. Ke2 {[%clk 0:00:42]}
37... Kc4 {[%clk 0:00:17.6]} 38. c6 {[%clk 0:00:39.6]} 38... Kb5 {[%clk
0:00:16.3]} 39. Ra1 {[%clk 0:00:37.8]} 39... Kxc6 {[%clk 0:00:15.8]} 40. Rc1+
{[%clk 0:00:34.9]} 40... Kb6 {[%clk 0:00:15.8]} 41. a4 {[%clk 0:00:35.5]} 41...
Rb3 {[%clk 0:00:13.1]} 42. Rc4 {[%clk 0:00:35.5]} 42... Rb2+ {[%clk 0:00:12.8]}
43. Ke3 {[%clk 0:00:32.8]} 43... Rxh2 {[%clk 0:00:13.7]} 44. b5 {[%clk
0:00:33.4]} 44... Rh1 {[%clk 0:00:10.4]} 45. Rc6+ {[%clk 0:00:31.1]} 45... Kb7
{[%clk 0:00:10.9]} 46. Rxg6 {[%clk 0:00:32]} 46... h2 {[%clk 0:00:11.3]} 0-1

[Event "Late-Titled-Tuesday-Blitz-February-27-2024"]
[Site "Chess.com"]
[Date "2024.02.27"]
[Round "8"]
[White "Jospem"]
[Black "Fonsofan"]
[Result "1-0"]
[WhiteElo "3065"]
[BlackElo "2759"]
[TimeControl "180+1"]
[EndTime "15:27:25 PST"]
[Termination "Jospem won on time"]

1. e4 {[%clk 0:03:00.9]} 1... d6 {[%clk 0:02:53.9]} 2. d4 {[%clk 0:03:00.3]}
2... Nf6 {[%clk 0:02:54.5]} 3. Bd3 {[%clk 0:03:00.2]} 3... e5 {[%clk 0:02:54.8]}
4. c3 {[%clk 0:03:00.6]} 4... d5 {[%clk 0:02:55.4]} 5. dxe5 {[%clk 0:03:01]}
5... Nxe4 {[%clk 0:02:55.9]} 6. Nf3 {[%clk 0:03:01.7]} 6... Nc6 {[%clk
0:02:55.5]} 7. O-O {[%clk 0:03:02.3]} 7... Nc5 {[%clk 0:02:54.7]} 8. Be2 {[%clk
0:03:00.1]} 8... Be7 {[%clk 0:02:54.8]} 9. Be3 {[%clk 0:03:00.1]} 9... Bg4
{[%clk 0:02:54]} 10. Nbd2 {[%clk 0:02:59.6]} 10... O-O {[%clk 0:02:48.1]} 11. b4
{[%clk 0:02:55.8]} 11... Ne6 {[%clk 0:02:47.9]} 12. b5 {[%clk 0:02:56.3]} 12...
Na5 {[%clk 0:02:47.4]} 13. Qa4 {[%clk 0:02:56.3]} 13... Bxf3 {[%clk 0:02:42.6]}
14. Nxf3 {[%clk 0:02:57.2]} 14... c6 {[%clk 0:02:38.2]} 15. Rfd1 {[%clk
0:02:53.7]} 15... Qc7 {[%clk 0:02:18.4]} 16. Rab1 {[%clk 0:02:51.7]} 16... Bc5
{[%clk 0:02:16]} 17. Nd4 {[%clk 0:02:43.2]} 17... Bxd4 {[%clk 0:01:28.7]} 18.
cxd4 {[%clk 0:02:44.1]} 18... cxb5 {[%clk 0:01:23.6]} 19. Rxb5 {[%clk
0:02:34.8]} 19... Nc4 {[%clk 0:01:23.7]} 20. Rc1 {[%clk 0:02:22.5]} 20... Rfd8
{[%clk 0:01:23.5]} 21. Bxc4 {[%clk 0:02:13.2]} 21... dxc4 {[%clk 0:01:24.4]} 22.
Rxc4 {[%clk 0:02:13.3]} 22... Qd7 {[%clk 0:01:22.6]} 23. Rb1 {[%clk 0:01:38.9]}
23... Qd5 {[%clk 0:01:04.7]} 24. h3 {[%clk 0:01:38.2]} 24... h6 {[%clk
0:00:51.8]} 25. Kh2 {[%clk 0:01:35.4]} 25... a6 {[%clk 0:00:48.7]} 26. Rb6
{[%clk 0:01:35]} 26... Rd7 {[%clk 0:00:44.8]} 27. Rcb4 {[%clk 0:01:29.5]} 27...
Rad8 {[%clk 0:00:45.2]} 28. Qb3 {[%clk 0:01:28.5]} 28... Qxb3 {[%clk 0:00:35]}
29. Rxb3 {[%clk 0:01:29.4]} 29... Nxd4 {[%clk 0:00:35.2]} 30. Bxd4 {[%clk
0:01:29.6]} 30... Rxd4 {[%clk 0:00:36.1]} 31. Rxb7 {[%clk 0:01:29.9]} 31... Rf4
{[%clk 0:00:27.5]} 32. f3 {[%clk 0:01:18]} 32... Ra4 {[%clk 0:00:27.2]} 33. a3
{[%clk 0:01:04.7]} 33... Re8 {[%clk 0:00:27.1]} 34. Re3 {[%clk 0:00:59.8]} 34...
g5 {[%clk 0:00:25.7]} 35. Kg3 {[%clk 0:00:53.7]} 35... Re6 {[%clk 0:00:25.3]}
36. Rb4 {[%clk 0:00:46.2]} 36... Ra5 {[%clk 0:00:14.8]} 37. f4 {[%clk
0:00:46.6]} 37... Kg7 {[%clk 0:00:15.3]} 38. Kg4 {[%clk 0:00:39.4]} 38... gxf4
{[%clk 0:00:10.8]} 39. Kxf4 {[%clk 0:00:40.3]} 39... Rg6 {[%clk 0:00:08.2]} 40.
g4 {[%clk 0:00:39.4]} 40... Re6 {[%clk 0:00:08.3]} 41. h4 {[%clk 0:00:37.2]}
41... Kg6 {[%clk 0:00:08]} 42. Rbe4 {[%clk 0:00:33.6]} 42... f6 {[%clk
0:00:04.2]} 43. h5+ {[%clk 0:00:32.2]} 43... Kf7 {[%clk 0:00:04.4]} 44. exf6
{[%clk 0:00:33]} 44... Rxe4+ {[%clk 0:00:03.5]} 45. Kxe4 {[%clk 0:00:29.8]}
45... Kxf6 {[%clk 0:00:02.3]} 46. Kf4 {[%clk 0:00:30.4]} 46... Ra4+ {[%clk
0:00:01.9]} 47. Kg3 {[%clk 0:00:31]} 47... Ra5 {[%clk 0:00:01.2]} 48. Rf3+
{[%clk 0:00:30]} 48... Kg5 {[%clk 0:00:01.1]} 49. Kh3 {[%clk 0:00:28.8]} 1-0

[Event "Late-Titled-Tuesday-Blitz-February-27-2024"]
[Site "Chess.com"]
[Date "2024.02.27"]
[Round "8"]
[White "Jahonas"]
[Black "Machidon"]
[Result "1-0"]
[WhiteElo "2377"]
[BlackElo "2474"]
[TimeControl "180+1"]
[EndTime "15:27:26 PST"]
[Termination "Jahonas won by resignation"]

1. d4 {[%clk 0:03:00.9]} 1... d5 {[%clk 0:02:58.7]} 2. c4 {[%clk 0:03:01]} 2...
e6 {[%clk 0:02:58.5]} 3. Nf3 {[%clk 0:03:01.4]} 3... c6 {[%clk 0:02:59]} 4. Nc3
{[%clk 0:03:01.9]} 4... dxc4 {[%clk 0:02:58.2]} 5. a4 {[%clk 0:03:01.8]} 5...
Nf6 {[%clk 0:02:55.5]} 6. Bg5 {[%clk 0:02:59.7]} 6... Bb4 {[%clk 0:02:54.9]} 7.
Bxf6 {[%clk 0:02:55.6]} 7... Qxf6 {[%clk 0:02:50.5]} 8. e4 {[%clk 0:02:53.7]}
8... b5 {[%clk 0:02:50.2]} 9. axb5 {[%clk 0:02:52.6]} 9... cxb5 {[%clk
0:02:51.1]} 10. Be2 {[%clk 0:02:37]} 10... Bb7 {[%clk 0:02:49]} 11. O-O {[%clk
0:02:30.5]} 11... Bxc3 {[%clk 0:02:46.3]} 12. e5 {[%clk 0:02:30.2]} 12... Qf4
{[%clk 0:02:33.6]} 13. bxc3 {[%clk 0:02:28.9]} 13... Nd7 {[%clk 0:02:28]} 14.
Qb1 {[%clk 0:02:26.3]} 14... a6 {[%clk 0:02:24.6]} 15. g3 {[%clk 0:02:01.1]}
15... Qe4 {[%clk 0:02:23.9]} 16. Qxe4 {[%clk 0:01:43]} 16... Bxe4 {[%clk
0:02:24.8]} 17. Nd2 {[%clk 0:01:41.5]} 17... Bc6 {[%clk 0:02:24.3]} 18. Ra5
{[%clk 0:01:38.5]} 18... Ke7 {[%clk 0:02:19.6]} 19. Rfa1 {[%clk 0:01:37.3]}
19... Bb7 {[%clk 0:02:17.2]} 20. Bf3 {[%clk 0:01:31.9]} 20... Rhb8 {[%clk
0:01:36.7]} 21. Bxb7 {[%clk 0:01:24.2]} 21... Rxb7 {[%clk 0:01:37.6]} 22. Rxa6
{[%clk 0:01:22.8]} 22... Rxa6 {[%clk 0:01:38.5]} 23. Rxa6 {[%clk 0:01:22.6]}
23... Nb6 {[%clk 0:01:39]} 24. Ne4 {[%clk 0:01:10]} 24... f5 {[%clk 0:01:16.1]}
25. Nd6 {[%clk 0:01:08.2]} 25... Rb8 {[%clk 0:01:15.5]} 26. Rxb6 {[%clk
0:00:39.2]} 26... Rxb6 {[%clk 0:01:14.4]} 27. Nc8+ {[%clk 0:00:39.2]} 27... Kd7
{[%clk 0:01:14.9]} 28. Nxb6+ {[%clk 0:00:39.4]} 28... Kc6 {[%clk 0:01:14.6]} 29.
Nxc4 {[%clk 0:00:35.5]} 29... bxc4 {[%clk 0:01:11.2]} 30. Kf1 {[%clk 0:00:35.2]}
30... Kd5 {[%clk 0:01:06.4]} 31. f3 {[%clk 0:00:34.5]} 31... g5 {[%clk
0:00:59.6]} 32. Ke2 {[%clk 0:00:33.5]} 32... Kc6 {[%clk 0:00:55.5]} 33. Ke3
{[%clk 0:00:31.1]} 33... Kd5 {[%clk 0:00:51.5]} 34. h3 {[%clk 0:00:30.5]} 34...
h6 {[%clk 0:00:38.8]} 35. f4 {[%clk 0:00:18.5]} 35... g4 {[%clk 0:00:18.2]} 36.
hxg4 {[%clk 0:00:18.2]} 36... fxg4 {[%clk 0:00:19.1]} 37. f5 {[%clk 0:00:16]}
37... exf5 {[%clk 0:00:19.9]} 38. Kf4 {[%clk 0:00:14.3]} 38... Ke6 {[%clk
0:00:19.5]} 39. d5+ {[%clk 0:00:12.2]} 39... Kxd5 {[%clk 0:00:20.4]} 40. Kxf5
{[%clk 0:00:12.4]} 40... h5 {[%clk 0:00:19.2]} 41. e6 {[%clk 0:00:11.3]} 41...
Kd6 {[%clk 0:00:16.8]} 42. Kf6 {[%clk 0:00:11.1]} 42... h4 {[%clk 0:00:17.7]}
43. e7 {[%clk 0:00:11.2]} 1-0

[Event "Late-Titled-Tuesday-Blitz-February-27-2024"]
[Site "Chess.com"]
[Date "2024.02.27"]
[Round "8"]
[White "lucasmito"]
[Black "secretsuperstar7"]
[Result "1-0"]
[WhiteElo "2821"]
[BlackElo "2512"]
[TimeControl "180+1"]
[EndTime "15:27:29 PST"]
[Termination "lucasmito won by resignation"]

1. e4 {[%clk 0:02:56]} 1... c5 {[%clk 0:02:57.3]} 2. Nf3 {[%clk 0:02:56.2]} 2...
Nc6 {[%clk 0:02:56.6]} 3. Nc3 {[%clk 0:02:56.1]} 3... e5 {[%clk 0:02:55.1]} 4.
Bc4 {[%clk 0:02:55.4]} 4... d6 {[%clk 0:02:54.7]} 5. d3 {[%clk 0:02:55.4]} 5...
Be7 {[%clk 0:02:54.2]} 6. Ng5 {[%clk 0:02:53.7]} 6... Nh6 {[%clk 0:02:15.3]} 7.
h4 {[%clk 0:02:40.7]} 7... O-O {[%clk 0:02:14.7]} 8. Nd5 {[%clk 0:02:37.8]} 8...
Na5 {[%clk 0:02:00.3]} 9. f3 {[%clk 0:02:04.5]} 9... Rb8 {[%clk 0:01:47.7]} 10.
a3 {[%clk 0:02:03.4]} 10... Nxc4 {[%clk 0:01:36.9]} 11. dxc4 {[%clk 0:02:04.3]}
11... Be6 {[%clk 0:01:32.4]} 12. Be3 {[%clk 0:02:01.9]} 12... Kh8 {[%clk
0:01:25.8]} 13. Qd2 {[%clk 0:01:41.3]} 13... Ng8 {[%clk 0:01:23.6]} 14. O-O-O
{[%clk 0:01:39.1]} 14... Bxd5 {[%clk 0:01:22.2]} 15. Qxd5 {[%clk 0:01:38.1]}
15... Qe8 {[%clk 0:01:18.3]} 16. g4 {[%clk 0:01:34.5]} 16... b5 {[%clk
0:01:17.1]} 17. h5 {[%clk 0:01:21.8]} 17... h6 {[%clk 0:01:15.8]} 18. Nh3 {[%clk
0:01:21.4]} 18... b4 {[%clk 0:01:06.5]} 19. axb4 {[%clk 0:01:13.3]} 19... Rxb4
{[%clk 0:01:06.5]} 20. g5 {[%clk 0:01:01.2]} 20... Qb8 {[%clk 0:01:03.2]} 21. b3
{[%clk 0:00:55.2]} 21... a5 {[%clk 0:01:01.9]} 22. gxh6 {[%clk 0:00:27.2]} 22...
gxh6 {[%clk 0:01:01.6]} 23. Qd2 {[%clk 0:00:20.2]} 23... a4 {[%clk 0:01:00]} 24.
Bxh6 {[%clk 0:00:19.1]} 24... axb3 {[%clk 0:00:52.7]} 25. Bxf8 {[%clk
0:00:06.7]} 25... b2+ {[%clk 0:00:48.8]} 26. Kb1 {[%clk 0:00:06.9]} 26... Ra4
{[%clk 0:00:25.5]} 27. c3 {[%clk 0:00:07.5]} 27... Ra1+ {[%clk 0:00:17]} 28. Kc2
{[%clk 0:00:06.6]} 28... b1=Q+ {[%clk 0:00:17.3]} 29. Rxb1 {[%clk 0:00:06.4]}
29... Ra2+ {[%clk 0:00:17.6]} 30. Kd3 {[%clk 0:00:06.9]} 30... Rxd2+ {[%clk
0:00:17.1]} 31. Kxd2 {[%clk 0:00:07.8]} 31... Qxf8 {[%clk 0:00:16.7]} 32. Nf2
{[%clk 0:00:05.5]} 32... Qh6+ {[%clk 0:00:16.6]} 33. Ke2 {[%clk 0:00:06.1]}
33... Qf4 {[%clk 0:00:16.2]} 34. Ng4 {[%clk 0:00:06.9]} 34... Nh6 {[%clk
0:00:16]} 35. Ne3 {[%clk 0:00:06.2]} 35... Bg5 {[%clk 0:00:15.4]} 36. Nd5 {[%clk
0:00:06.5]} 36... Qg3 {[%clk 0:00:15.1]} 37. Rbg1 {[%clk 0:00:05.8]} 37... Nf5
{[%clk 0:00:06.3]} 38. exf5 {[%clk 0:00:03.6]} 38... Qh4 {[%clk 0:00:06.2]} 39.
Rxh4 {[%clk 0:00:03.6]} 39... Bxh4 {[%clk 0:00:07.1]} 40. f6 {[%clk 0:00:04.4]}
1-0

[Event "Late-Titled-Tuesday-Blitz-February-27-2024"]
[Site "Chess.com"]
[Date "2024.02.27"]
[Round "8"]
[White "aghasiyevkamal"]
[Black "Adar_07"]
[Result "0-1"]
[WhiteElo "2628"]
[BlackElo "2794"]
[TimeControl "180+1"]
[EndTime "15:27:30 PST"]
[Termination "Adar_07 won on time"]

1. d4 {[%clk 0:03:00.9]} 1... Nf6 {[%clk 0:02:59.9]} 2. c4 {[%clk 0:02:59.7]}
2... e6 {[%clk 0:02:59.4]} 3. Nf3 {[%clk 0:02:56.7]} 3... b6 {[%clk 0:02:58.4]}
4. g3 {[%clk 0:02:56.6]} 4... Bb7 {[%clk 0:02:57.3]} 5. Bg2 {[%clk 0:02:56.4]}
5... Bb4+ {[%clk 0:02:56.3]} 6. Bd2 {[%clk 0:02:53.7]} 6... a5 {[%clk
0:02:53.9]} 7. O-O {[%clk 0:02:53.2]} 7... O-O {[%clk 0:02:53.3]} 8. a3 {[%clk
0:02:47.3]} 8... Bxd2 {[%clk 0:02:51.6]} 9. Nbxd2 {[%clk 0:02:47.5]} 9... d6
{[%clk 0:02:50.6]} 10. c5 {[%clk 0:02:40.8]} 10... Nbd7 {[%clk 0:02:46.4]} 11.
cxd6 {[%clk 0:02:35.6]} 11... cxd6 {[%clk 0:02:46.1]} 12. Qb3 {[%clk 0:02:32.3]}
12... Rc8 {[%clk 0:02:14.6]} 13. Rac1 {[%clk 0:02:27.1]} 13... Rxc1 {[%clk
0:02:12.2]} 14. Rxc1 {[%clk 0:02:26.7]} 14... Qb8 {[%clk 0:02:12.8]} 15. Nh4
{[%clk 0:02:10.7]} 15... Rc8 {[%clk 0:02:07.7]} 16. Rxc8+ {[%clk 0:02:08.1]}
16... Qxc8 {[%clk 0:02:08.6]} 17. Bxb7 {[%clk 0:02:07.2]} 17... Qxb7 {[%clk
0:02:09.5]} 18. Qc4 {[%clk 0:01:51.4]} 18... b5 {[%clk 0:02:05.1]} 19. Qc2
{[%clk 0:01:49.5]} 19... g5 {[%clk 0:02:02.6]} 20. Nhf3 {[%clk 0:01:46]} 20...
g4 {[%clk 0:02:02.9]} 21. Ne1 {[%clk 0:01:36.3]} 21... Qd5 {[%clk 0:02:00.1]}
22. e3 {[%clk 0:01:28]} 22... e5 {[%clk 0:01:48.2]} 23. Nd3 {[%clk 0:01:27.9]}
23... exd4 {[%clk 0:01:33.4]} 24. Nf4 {[%clk 0:01:08.2]} 24... Qe5 {[%clk
0:01:32.6]} 25. Qc8+ {[%clk 0:00:51]} 25... Kg7 {[%clk 0:01:32.5]} 26. Nf1
{[%clk 0:00:48.1]} 26... Nb6 {[%clk 0:01:21.8]} 27. Qd8 {[%clk 0:00:40.9]} 27...
Nc4 {[%clk 0:01:12.9]} 28. b3 {[%clk 0:00:40]} 28... dxe3 {[%clk 0:00:51]} 29.
bxc4 {[%clk 0:00:31.9]} 29... exf2+ {[%clk 0:00:46.2]} 30. Kxf2 {[%clk
0:00:20.4]} 30... Qb2+ {[%clk 0:00:45.9]} 31. Ne2 {[%clk 0:00:17.3]} 31... bxc4
{[%clk 0:00:36.8]} 32. Ne3 {[%clk 0:00:17.4]} 32... Ne4+ {[%clk 0:00:35.9]} 33.
Kf1 {[%clk 0:00:17.4]} 33... Qb1+ {[%clk 0:00:26]} 34. Kg2 {[%clk 0:00:17.3]}
34... Nf6 {[%clk 0:00:26.6]} 35. Qxd6 {[%clk 0:00:13.4]} 35... Qe4+ {[%clk
0:00:26.8]} 36. Kf2 {[%clk 0:00:08]} 36... Qf3+ {[%clk 0:00:27]} 37. Ke1 {[%clk
0:00:08.4]} 37... Qxe3 {[%clk 0:00:27.9]} 38. Qd4 {[%clk 0:00:04.5]} 38... Qxa3
{[%clk 0:00:20.6]} 39. Qxc4 {[%clk 0:00:02.4]} 39... Qd6 {[%clk 0:00:15.2]} 40.
Nf4 {[%clk 0:00:01.6]} 40... Qe5+ {[%clk 0:00:13.4]} 41. Kf1 {[%clk 0:00:01.3]}
41... Ne4 {[%clk 0:00:13.4]} 0-1

[Event "Late-Titled-Tuesday-Blitz-February-27-2024"]
[Site "Chess.com"]
[Date "2024.02.27"]
[Round "8"]
[White "pr1105"]
[Black "JaackCamel"]
[Result "0-1"]
[WhiteElo "2335"]
[BlackElo "2243"]
[TimeControl "180+1"]
[EndTime "15:27:31 PST"]
[Termination "JaackCamel won by checkmate"]

1. e4 {[%clk 0:02:55.2]} 1... e6 {[%clk 0:02:59.4]} 2. d4 {[%clk 0:02:54.8]}
2... d5 {[%clk 0:02:59.1]} 3. Nc3 {[%clk 0:02:54.8]} 3... Bb4 {[%clk 0:02:58.5]}
4. e5 {[%clk 0:02:55]} 4... Ne7 {[%clk 0:02:57.9]} 5. a3 {[%clk 0:02:55.4]} 5...
Bxc3+ {[%clk 0:02:57.4]} 6. bxc3 {[%clk 0:02:56.3]} 6... b6 {[%clk 0:02:56.9]}
7. Qg4 {[%clk 0:02:53.2]} 7... Ng6 {[%clk 0:02:56.4]} 8. h4 {[%clk 0:02:43.3]}
8... h5 {[%clk 0:02:55.9]} 9. Qg3 {[%clk 0:02:22]} 9... Ba6 {[%clk 0:02:54.9]}
10. Bxa6 {[%clk 0:02:21.6]} 10... Nxa6 {[%clk 0:02:54.5]} 11. Bg5 {[%clk
0:02:11.9]} 11... Qd7 {[%clk 0:02:53.8]} 12. Ne2 {[%clk 0:02:12.4]} 12... Nb8
{[%clk 0:02:52.8]} 13. Nf4 {[%clk 0:02:12.6]} 13... Nxf4 {[%clk 0:02:51.6]} 14.
Bxf4 {[%clk 0:02:13.5]} 14... g6 {[%clk 0:02:50.2]} 15. Bg5 {[%clk 0:02:13.8]}
15... Nc6 {[%clk 0:02:49.2]} 16. Bf6 {[%clk 0:02:14.2]} 16... Rh7 {[%clk
0:02:48.9]} 17. O-O {[%clk 0:02:10.4]} 17... Na5 {[%clk 0:02:48.4]} 18. Qg5
{[%clk 0:02:04]} 18... Nc4 {[%clk 0:02:47]} 19. f3 {[%clk 0:02:03.2]} 19... a5
{[%clk 0:02:45]} 20. g4 {[%clk 0:02:01.9]} 20... Qc6 {[%clk 0:02:42.4]} 21. Kg2
{[%clk 0:01:59.4]} 21... Kd7 {[%clk 0:02:35.5]} 22. Kg3 {[%clk 0:01:54]} 22...
Re8 {[%clk 0:02:25.2]} 23. Qc1 {[%clk 0:01:53.3]} 23... Kc8 {[%clk 0:02:02.7]}
24. Rh1 {[%clk 0:01:44.6]} 24... Kd7 {[%clk 0:02:02.1]} 25. f4 {[%clk 0:01:44]}
25... hxg4 {[%clk 0:02:00.8]} 26. Kxg4 {[%clk 0:01:44.9]} 26... Rh5 {[%clk
0:01:58]} 27. Rg1 {[%clk 0:01:41.4]} 27... Rg8 {[%clk 0:01:51.3]} 28. Kf3 {[%clk
0:01:41.3]} 28... Qb5 {[%clk 0:01:42.2]} 29. a4 {[%clk 0:01:21.6]} 29... Qc6
{[%clk 0:01:41.5]} 30. Qe1 {[%clk 0:01:17.3]} 30... Nb2 {[%clk 0:01:37]} 31. Rg5
{[%clk 0:01:06]} 31... Nxa4 {[%clk 0:01:25.3]} 32. Ra3 {[%clk 0:01:05.4]} 32...
Nb2 {[%clk 0:01:20.6]} 33. Ke2 {[%clk 0:00:53.4]} 33... Nc4 {[%clk 0:01:17.6]}
34. Ra1 {[%clk 0:00:50]} 34... Nb2 {[%clk 0:01:11.6]} 35. Qg3 {[%clk 0:00:45.1]}
35... Qb5+ {[%clk 0:01:09.1]} 36. Ke1 {[%clk 0:00:43.2]} 36... Rxg5 {[%clk
0:00:51.1]} 37. Qxg5 {[%clk 0:00:41.3]} 37... Qc4 {[%clk 0:00:44.1]} 38. Kd2
{[%clk 0:00:39]} 38... Na4 {[%clk 0:00:41.2]} 39. Ra3 {[%clk 0:00:31.1]} 39...
c5 {[%clk 0:00:37.6]} 40. Rxa4 {[%clk 0:00:21]} 40... Qxa4 {[%clk 0:00:36.6]}
41. dxc5 {[%clk 0:00:21.7]} 41... Qc4 {[%clk 0:00:26.4]} 42. h5 {[%clk
0:00:18.6]} 42... Rc8 {[%clk 0:00:19.5]} 43. hxg6 {[%clk 0:00:15.1]} 43... Qxc5
{[%clk 0:00:19.4]} 44. gxf7 {[%clk 0:00:14.7]} 44... Qxc3+ {[%clk 0:00:19.5]}
45. Ke2 {[%clk 0:00:14.3]} 45... Qxc2+ {[%clk 0:00:18.3]} 46. Kf3 {[%clk
0:00:14.9]} 46... Qd1+ {[%clk 0:00:18]} 47. Kg3 {[%clk 0:00:12.9]} 47... Rc3+
{[%clk 0:00:16.9]} 48. Kh4 {[%clk 0:00:13.1]} 48... Qh1+ {[%clk 0:00:16.1]} 49.
Kg4 {[%clk 0:00:13.2]} 49... Qf3+ {[%clk 0:00:13.2]} 50. Kh4 {[%clk 0:00:13.2]}
50... Qh3# {[%clk 0:00:13.7]} 0-1